bitfinex/quotes_SOLUSD_20250210
["timestamp","ask_amount","ask_price","bid_price","bid_amount"]
[1739209747777,16.78464168,203.25,203.24,0.03]
[1739209748410,5.17098,203.25,203.24,0.03]
[1739209751703,17.86466168,203.31,203.24,0.03]
[1739209751919,83.1,203.33,203.24,0.03]
[1739209751920,17.2158,203.3,203.24,11.64366168]
[1739209752220,0.12549,203.29,203.24,11.64366168]
[1739209753303,0.12549,203.27,203.24,11.64366168]
[1739209753809,4.9185,203.31,203.26,11.61366168]
[1739209753996,4.9176,203.35,203.31,13.41184853]
[1739209754182,4.9803,203.37,203.33,13.41184853]
[1739209754387,4.9803,203.37,203.34,11.61366168]
[1739209754699,0.12549,203.36,203.34,11.61366168]
[1739209754897,0.12549,203.36,203.31,13.41184853]
[1739209754898,0.12549,203.36,203.33,11.61366168]
[1739209755207,4.9174,203.36,203.33,11.61366168]
[1739209755509,0.12549,203.35,203.33,11.61366168]
[1739209755896,0.12549,203.35,203.32,11.61366168]
[1739209756094,0.18849,203.37,203.33,11.61366168]
[1739209756296,0.063,203.37,203.33,11.61366168]
[1739209756493,0.063,203.37,203.35,11.61366168]
[1739209757193,0.063,203.37,203.34,11.61366168]
[1739209759124,0.063,203.37,203.35,13.41184853]
[1739209759589,0.063,203.37,203.35,11.61366168]
[1739209760519,0.063,203.37,203.35,13.41184853]
[1739209763717,0.063,203.37,203.36,25.02551021]
[1739209765624,0.063,203.37,203.36,13.41184853]
[1739209766731,0.063,203.37,203.36,25.02551021]
[1739209767108,0.063,203.37,203.36,13.41184853]
[1739209769599,0.063,203.37,203.33,11.61366168]
[1739209770010,0.063,203.37,203.31,11.61366168]
[1739209770513,0.12549,203.36,203.32,13.41184853]
[1739209772152,0.12549,203.35,203.32,13.41184853]
[1739209772314,0.12549,203.35,203.31,11.61366168]
[1739209772515,0.12549,203.35,203.29,11.61366168]
[1739209772936,0.12549,203.35,203.3,13.41184853]
[1739209774431,4.9178,203.34,203.3,13.41184853]
[1739209775561,0.12549,203.33,203.29,11.61366168]
[1739209775843,0.12549,203.33,203.27,0.03]
[1739209775844,11.86464168,203.33,203.27,0.03]
[1739209776816,4.9183,203.32,203.27,0.03]
[1739209780310,11.61366168,203.3,203.27,0.03]
[1739209781337,0.12549,203.28,203.27,0.03]
[1739209781769,11.61366168,203.33,203.27,0.03]
[1739209782080,0.12549,203.31,203.27,0.03]
[1739209783666,0.12549,203.31,203.28,11.61366168]
[1739209783967,101.42616168,203.36,203.29,11.61366168]
[1739209784169,101.42616168,203.36,203.32,11.61366168]
[1739209784170,0.063,203.36,203.32,11.61366168]
[1739209784347,0.18849,203.36,203.32,11.61366168]
[1739209784674,5.10579,203.36,203.32,11.61366168]
[1739209784970,0.18849,203.36,203.32,11.61366168]
[1739209785346,5.10589,203.36,203.31,11.61366168]
[1739209785871,5.10589,203.36,203.3,13.41184853]
[1739209786573,0.12549,203.34,203.3,13.41184853]
[1739209787855,5.04349,203.34,203.3,13.41184853]
[1739209788572,5.04349,203.34,203.29,13.41184853]
[1739209788763,5.23158,203.36,203.29,13.41184853]
[1739209790271,5.23158,203.36,203.28,11.61366168]
[1739209790437,5.23158,203.36,203.28,16.53286168]
[1739209790643,5.23158,203.36,203.29,13.41184853]
[1739209793677,5.23158,203.36,203.3,3.66856281]
[1739209793853,5.04329,203.34,203.3,3.66856281]
[1739209795072,5.04329,203.34,203.29,13.41184853]
[1739209796780,11.73915168,203.33,203.27,81.23]
[1739209797106,11.73915168,203.33,203.27,0.03]
[1739209797264,5.04329,203.34,203.27,13.44184853]
[1739209797469,0.12549,203.33,203.28,11.61366168]
[1739209797971,0.12549,203.33,203.28,15.29030338]
[1739209798984,0.12549,203.33,203.29,3.6766417]
[1739209800058,0.12549,203.33,203.3,3.6766417]
[1739209800260,0.12549,203.32,203.3,3.6766417]
[1739209801074,0.12549,203.32,203.31,3.6766417]
[1739209801381,5.16878,203.34,203.31,3.6766417]
[1739209802195,0.12549,203.34,203.31,3.6766417]
[1739209802493,0.063,203.36,203.32,25.02551021]
[1739209803021,0.18849,203.36,203.32,25.02551021]
[1739209803188,0.063,203.36,203.32,25.02551021]
[1739209803595,0.063,203.36,203.32,13.41184853]
[1739209804286,0.063,203.36,203.33,3.67586048]
[1739209805300,0.063,203.36,203.34,3.67586048]
[1739209806292,0.063,203.36,203.35,13.41184853]
[1739209806769,0.063,203.36,203.33,4.918]
[1739209806975,0.063,203.36,203.34,13.41184853]
[1739209807172,0.063,203.36,203.34,18.32964853]
[1739209807476,0.063,203.36,203.34,29.94331021]
[1739209807698,0.063,203.36,203.34,25.02551021]
[1739209807902,0.18849,203.36,203.35,3.67444451]
[1739209812347,5.10579,203.36,203.35,3.67444451]
[1739209814642,12.66973264,203.36,203.35,3.67444451]
[1739209815547,0.25098,203.32,203.27,0.03]
[1739209815852,0.12549,203.28,203.27,0.03]
[1739209816758,7.68943264,203.28,203.27,0.03]
[1739209817739,11.88477331,203.28,203.27,0.03]
[1739209817940,16.80407331,203.28,203.27,0.03]
[1739209818827,22.86397331,203.28,203.27,0.03]
[1739209819460,34.49776662,203.28,203.27,0.03]
[1739209819862,22.86397331,203.28,203.27,0.03]
[1739209821764,22.92697331,203.28,203.27,0.03]
[1739209822054,16.86707331,203.28,203.27,0.03]
[1739209822963,16.99256331,203.28,203.27,0.03]
[1739209823523,0.063,203.28,203.27,0.03]
[1739209823677,0.063,203.28,203.27,13.44184853]
[1739209825574,0.063,203.28,203.27,0.03]
[1739209826073,0.18849,203.28,203.27,0.03]
[1739209826378,11.82228331,203.28,203.27,0.03]
[1739209826585,11.94777331,203.28,203.27,0.03]
[1739209827085,0.31398,203.28,203.27,0.03]
[1739209827575,11.94777331,203.28,203.27,0.03]
[1739209827877,16.86707331,203.28,203.27,0.03]
[1739209830680,0.12549,203.27,203.24,0.03]
[1739209830883,11.88477331,203.25,203.24,0.03]
[1739209833584,16.80477331,203.25,203.24,0.03]
[1739209834582,0.25098,203.24,203.15,12.32789331]
[1739209834789,0.25098,203.21,203.15,12.32789331]
[1739209835293,16.55409331,203.24,203.18,11.63379331]
[1739209835586,0.25098,203.23,203.18,11.63379331]
[1739209837282,0.12549,203.23,203.19,13.41184853]
[1739209837465,0.063,203.28,203.22,13.41184853]
[1739209837466,4.9823,203.28,203.22,13.41184853]
[1739209837671,4.9823,203.28,203.22,25.04564184]
[1739209837872,0.12549,203.27,203.22,13.41184853]
[1739209838176,11.63379331,203.25,203.19,81.2]
[1739209838363,11.63379331,203.27,203.19,81.2]
[1739209838564,11.63379331,203.27,203.21,13.41184853]
[1739209838774,0.12549,203.26,203.21,13.41184853]
[1739209839380,0.063,203.28,203.21,18.33274853]
[1739209839381,4.9823,203.28,203.21,18.33274853]
[1739209839581,0.12549,203.27,203.21,13.41184853]
[1739209839828,0.12549,203.24,203.19,81.2]
[1739209840995,5.04589,203.24,203.19,81.2]
[1739209841192,0.12549,203.23,203.17,13.41184853]
[1739209842291,0.12549,203.23,203.17,18.33374853]
[1739209842662,0.12549,203.23,203.17,13.41184853]
[1739209843374,5.04599,203.23,203.17,13.41184853]
[1739209844385,0.12549,203.22,203.16,11.63379331]
[1739209844593,11.75928331,203.22,203.15,0.6941]
[1739209845229,11.75928331,203.22,203.17,0.03]
[1739209845665,5.04649,203.21,203.17,0.03]
[1739209846387,11.63379331,203.22,203.17,0.03]
[1739209846591,16.55429331,203.24,203.18,11.63379331]
[1739209846801,0.25098,203.23,203.18,11.63379331]
[1739209847296,16.55379331,203.26,203.19,13.41184853]
[1739209847587,0.25098,203.25,203.19,13.41184853]
[1739209848092,0.12549,203.25,203.19,18.33324853]
[1739209848263,0.063,203.27,203.23,13.41184853]
[1739209848463,0.063,203.27,203.22,11.63379331]
[1739209848662,0.18849,203.27,203.22,11.63379331]
[1739209850879,0.18849,203.27,203.22,16.55449331]
[1739209851891,0.063,203.27,203.23,18.33224853]
[1739209852094,0.063,203.27,203.26,25.04564184]
[1739209853312,0.063,203.27,203.26,29.96544184]
[1739209853797,0.063,203.27,203.23,81.2]
[1739209853978,0.18849,203.27,203.23,81.2]
[1739209854182,0.063,203.27,203.23,81.2]
[1739209854494,0.063,203.27,203.24,13.41184853]
[1739209855188,0.063,203.27,203.26,11.63379331]
[1739209855591,0.063,203.27,203.26,29.96544184]
[1739209855966,0.063,203.27,203.26,30.70317991]
[1739209856570,0.063,203.27,203.26,230.80317991]
[1739209856797,0.063,203.27,203.26,231.06544184]
[1739209857497,0.063,203.27,203.26,232.06544184]
[1739209858679,0.063,203.27,203.26,231.06544184]
[1739209860504,0.063,203.27,203.26,230.06544184]
[1739209862905,0.063,203.27,203.26,231.06544184]
[1739209863288,0.063,203.27,203.26,230.06544184]
[1739209866092,0.063,203.27,203.26,106.24564184]
[1739209866652,0.063,203.27,203.26,81.2]
[1739209866907,0.18849,203.27,203.21,4.9208]
[1739209867206,0.18849,203.27,203.22,13.41184853]
[1739209867382,0.18849,203.27,203.22,25.04564184]
[1739209870106,0.18849,203.27,203.21,4.9208]
[1739209870306,0.18849,203.27,203.22,13.41184853]
[1739209870820,0.18849,203.27,203.22,25.04564184]
[1739209871026,0.18849,203.27,203.22,29.96634184]
[1739209871831,0.063,203.27,203.24,11.63379331]
[1739209872112,0.063,203.27,203.26,11.63379331]
[1739209872513,0.063,203.27,203.26,16.55359331]
[1739209872720,0.063,203.27,203.26,230.06544184]
[1739209873034,0.063,203.36,203.31,13.41184853]
[1739209873212,0.063,203.36,203.33,11.63379331]
[1739209873600,0.063,203.36,203.31,25.04564184]
[1739209874496,0.063,203.36,203.32,4.9183]
[1739209876918,0.063,203.36,203.33,25.04564184]
[1739209877121,0.063,203.36,203.35,11.63379331]
[1739209878119,0.063,203.36,203.35,29.96324184]
[1739209878461,0.063,203.36,203.32,16.55199331]
[1739209879123,0.063,203.36,203.33,13.41184853]
[1739209880804,0.063,203.36,203.32,11.63379331]
[1739209881002,0.063,203.36,203.32,16.55199331]
[1739209881866,0.063,203.36,203.33,13.41184853]
[1739209882521,0.063,203.36,203.34,11.63379331]
[1739209882821,0.063,203.36,203.32,11.63379331]
[1739209883426,0.063,203.36,203.32,16.55209331]
[1739209886804,0.063,203.36,203.32,11.63379331]
[1739209887633,11.82228331,203.36,203.28,97.78289331]
[1739209888328,11.82228331,203.36,203.29,13.41184853]
[1739209888505,11.63379331,203.34,203.29,13.41184853]
[1739209889102,6.73188,203.33,203.28,0.03]
[1739209889307,18.24018331,203.33,203.28,0.03]
[1739209889506,6.60639,203.33,203.28,0.03]
[1739209890243,0.18849,203.36,203.3,11.63379331]
[1739209890536,0.12549,203.35,203.3,11.63379331]
[1739209890706,11.75928331,203.35,203.29,13.41184853]
[1739209891115,0.12549,203.35,203.29,16.55279331]
[1739209891530,0.12549,203.35,203.29,11.63379331]
[1739209891708,5.04309,203.35,203.29,11.63379331]
[1739209891910,5.04309,203.35,203.29,13.41184853]
[1739209892227,11.82228331,203.36,203.33,11.63379331]
[1739209892228,0.063,203.36,203.33,11.63379331]
[1739209894253,0.063,203.36,203.33,16.55179331]
[1739209894617,0.063,203.36,203.33,11.63379331]
[1739209894834,0.063,203.36,203.32,18.33014853]
[1739209896724,0.063,203.36,203.32,13.41184853]
[1739209897125,0.063,203.36,203.32,18.33014853]
[1739209899070,0.063,203.36,203.32,13.41184853]
[1739209900026,0.063,203.36,203.32,18.33014853]
[1739209901952,0.063,203.36,203.34,13.41184853]
[1739209903548,0.063,203.36,203.34,18.32954853]
[1739209904455,0.063,203.36,203.33,7.43691671]
[1739209904651,0.063,203.36,203.34,13.41184853]
[1739209904830,0.063,203.36,203.34,20.84876524]
[1739209905031,0.063,203.36,203.34,13.41184853]
[1739209905652,0.063,203.36,203.34,20.84876524]
[1739209905855,0.063,203.36,203.34,25.76646524]
[1739209906152,0.063,203.36,203.35,7.43691671]
[1739209906950,0.063,203.36,203.34,86.1177]
[1739209907655,0.063,203.36,203.35,13.41184853]
[1739209909787,0.063,203.36,203.34,81.2]
[1739209911350,0.063,203.36,203.34,86.1178]
[1739209912873,0.063,203.36,203.34,81.2]
[1739209913671,0.063,203.36,203.34,86.1178]
[1739209914748,0.063,203.36,203.34,81.2]
[1739209915571,0.063,203.36,203.35,20.84876524]
[1739209916649,0.063,203.36,203.35,102.04876524]
[1739209917066,0.063,203.36,203.35,106.96636524]
[1739209919565,0.063,203.36,203.35,225.86636524]
[1739209924153,0.063,203.43,203.39,20.0]
[1739209924352,0.063,203.43,203.42,20.84876524]
[1739209924898,0.063,203.43,203.42,7.43691671]
[1739209926557,0.063,203.43,203.39,220.1]
[1739209926764,0.063,203.43,203.39,227.53691671]
[1739209927098,0.063,203.43,203.4,13.41184853]
[1739209927777,0.063,203.43,203.4,20.84876524]
[1739209928612,0.063,203.43,203.4,102.04876524]
[1739209929005,0.063,203.43,203.4,106.96506524]
[1739209930597,0.063,203.43,203.4,93.55321671]
[1739209930902,0.063,203.43,203.34,88.63691671]
[1739209930903,0.12549,203.41,203.34,88.63691671]
[1739209931096,7.43691671,203.4,203.32,7.43691671]
[1739209931279,0.12549,203.39,203.32,7.43691671]
[1739209932106,7.43691671,203.39,203.35,20.0]
[1739209932800,7.43691671,203.39,203.31,118.9]
[1739209932801,0.12549,203.38,203.31,12.35531671]
[1739209934099,0.12549,203.38,203.33,24.9181]
[1739209934283,0.12549,203.38,203.33,32.35501671]
[1739209935196,6.3527,203.39,203.35,7.43691671]
[1739209936279,6.3527,203.39,203.36,4.9173]
[1739209936982,1.5852,203.43,203.38,7.43691671]
[1739209937181,1.5852,203.43,203.39,7.43691671]
[1739209937577,1.5852,203.43,203.38,7.43691671]
[1739209938401,7.43691671,203.4,203.36,118.9]
[1739209938800,0.12549,203.39,203.36,118.9]
[1739209940404,0.18849,203.39,203.35,0.03]
[1739209942116,0.25098,203.36,203.35,0.03]
[1739209942301,7.68789671,203.36,203.35,0.03]
[1739209942615,12.60519671,203.36,203.35,0.03]
[1739209943029,14.11269671,203.36,203.35,0.03]
[1739209952133,0.25098,203.32,203.28,0.03]
[1739209952432,7.68789671,203.29,203.28,0.03]
[1739209953926,12.60689671,203.29,203.28,0.03]
[1739209955121,0.12549,203.29,203.28,0.03]
[1739209955429,95.45471671,203.35,203.28,7.46691671]
[1739209955814,0.12549,203.34,203.29,7.43691671]
[1739209956215,1.5075,203.36,203.29,12.35581671]
[1739209956513,0.12549,203.35,203.29,12.35581671]
[1739209957232,0.12549,203.35,203.29,7.43691671]
[1739209957739,0.12549,203.35,203.29,11.62320912]
[1739209959043,5.04309,203.35,203.29,11.62320912]
[1739209959246,5.04309,203.35,203.28,11.65320912]
[1739209961237,5.04309,203.35,203.28,92.85320912]
[1739209963237,0.25098,203.33,203.28,81.23]
[1739209963949,0.12549,203.31,203.28,81.23]
[1739209966126,5.04379,203.32,203.28,81.23]
[1739209967118,5.04379,203.32,203.28,0.03]
[1739209967436,0.12549,203.31,203.28,0.03]
[1739209967747,11.74869912,203.3,203.28,0.03]
[1739209968051,11.74869912,203.29,203.28,0.03]
[1739209968255,16.66769912,203.29,203.28,0.03]
[1739209971777,83.1,203.35,203.28,0.03]
[1739209972052,4.9178,203.34,203.28,11.65320912]
[1739209972225,0.25098,203.33,203.28,0.03]
[1739209972429,0.12549,203.31,203.28,0.03]
[1739209973137,0.12549,203.33,203.28,0.03]
[1739209973138,11.62320912,203.34,203.28,0.03]
[1739209973448,11.68620912,203.36,203.28,11.65320912]
[1739209973662,0.12549,203.35,203.28,11.65320912]
[1739209975448,0.12549,203.35,203.28,16.57240912]
[1739209975949,0.12549,203.33,203.28,0.03]
[1739209976253,0.25098,203.33,203.28,0.03]
[1739209977752,0.12549,203.32,203.28,0.03]
[1739209977958,0.063,203.36,203.29,7.4412626]
[1739209978148,0.18849,203.36,203.29,7.4412626]
[1739209979165,0.18849,203.36,203.3,13.41184853]
[1739209979644,0.18849,203.36,203.31,4.9185]
[1739209980677,0.18849,203.36,203.29,88.6412626]
[1739209980678,5.10599,203.36,203.29,88.6412626]
[1739209980969,0.12549,203.34,203.29,81.2]
[1739209981769,0.12549,203.34,203.29,86.1189]
[1739209982075,0.18849,203.36,203.29,93.5601626]
[1739209982446,0.063,203.36,203.29,93.5601626]
[1739209983539,0.063,203.36,203.31,12.3597626]
[1739209984973,0.063,203.36,203.31,93.5597626]
[1739209985172,0.063,203.36,203.32,13.41184853]
[1739209985469,0.063,203.36,203.35,7.4412626]
[1739209985670,0.063,203.36,203.35,81.2]
[1739209986752,0.063,203.36,203.35,86.1176]
[1739209987178,0.063,203.36,203.35,81.2]
[1739209989670,0.063,203.36,203.35,86.1176]
[1739209989977,0.063,203.36,203.35,99.52944853]
[1739209991068,0.063,203.36,203.35,106.97071113]
[1739209994480,0.063,203.36,203.35,88.6412626]
[1739209994685,0.063,203.36,203.35,81.2]
[1739209994887,0.063,203.36,203.32,126.3412626]
[1739209995062,0.063,203.36,203.3,7.4412626]
[1739209995265,0.063,203.36,203.31,13.41184853]
[1739209996082,0.063,203.36,203.31,18.33034853]
[1739209997301,0.063,203.36,203.33,13.41184853]
[1739209997684,0.063,203.36,203.33,25.03006234]
[1739209998297,0.063,203.36,203.33,11.61821381]
[1739209998596,0.063,203.36,203.31,16.53671381]
[1739209999194,0.063,203.36,203.32,13.41184853]
[1739209999581,0.063,203.36,203.33,4.9181]
[1739210001396,0.063,203.36,203.32,99.53014853]
[1739210003803,0.063,203.36,203.32,81.2]
[1739210004010,0.18849,203.36,203.32,81.2]
[1739210006089,5.10599,203.36,203.32,81.2]
[1739210006802,11.61821381,203.35,203.31,0.03]
[1739210006977,0.12549,203.34,203.31,0.03]
[1739210007182,0.12549,203.32,203.31,0.03]
[1739210007594,11.61821381,203.35,203.31,0.03]
[1739210008107,0.12549,203.34,203.31,0.03]
[1739210008306,11.74370381,203.32,203.31,0.03]
[1739210008484,11.86919381,203.32,203.31,0.03]
[1739210009800,16.78749381,203.32,203.31,0.03]
[1739210013288,32.70664234,203.32,203.31,0.03]
[1739210014326,31.70664234,203.32,203.31,0.03]
[1739210015220,18.29479381,203.32,203.31,0.03]
[1739210016110,11.86919381,203.32,203.31,0.03]
[1739210016927,11.99468381,203.32,203.31,0.03]
[1739210017110,16.91298381,203.32,203.31,0.03]
[1739210018734,11.68121381,203.36,203.31,0.03]
[1739210018924,0.12549,203.35,203.31,0.03]
[1739210019126,11.74370381,203.35,203.31,0.03]
[1739210019808,0.12549,203.33,203.31,0.03]
[1739210020125,0.25098,203.32,203.31,0.03]
[1739210021613,5.29477,203.32,203.31,0.03]
[1739210022715,0.37647,203.32,203.31,0.03]
[1739210023220,11.61821381,203.33,203.31,0.03]
[1739210023623,7.4413641,203.33,203.31,0.03]
[1739210026741,12.5476541,203.35,203.31,0.03]
[1739210027231,0.063,203.35,203.31,0.03]
[1739210027530,0.063,203.35,203.31,88.6713641]
[1739210027724,0.063,203.35,203.33,7.4413641]
[1739210029134,0.063,203.35,203.33,12.3592641]
[1739210029630,0.063,203.35,203.33,4.9179]
[1739210030437,0.063,203.35,203.32,11.61982215]
[1739210030634,0.063,203.35,203.31,205.0484]
[1739210031714,0.063,203.35,203.34,20.0]
[1739210031929,0.063,203.35,203.34,33.25142215]
[1739210032739,0.063,203.35,203.34,46.66327068]
[1739210032911,0.063,203.35,203.34,47.40061477]
[1739210033529,0.063,203.35,203.34,52.31841477]
[1739210035489,0.063,203.35,203.34,252.41841477]
[1739210035745,0.063,203.35,203.34,251.68107068]
[1739210036318,0.063,203.35,203.34,225.0178]
[1739210037043,0.063,203.35,203.34,236.63762215]
[1739210037542,0.063,203.35,203.34,205.0178]
[1739210038415,0.063,203.35,203.34,230.04947068]
[1739210038827,0.0001,203.35,203.34,230.04947068]
[1739210039237,0.0001,203.36,203.34,230.30045068]
[1739210039444,0.0001,203.36,203.35,15.14908125]
[1739210039648,0.0001,203.36,203.35,227.92068125]
[1739210039838,0.0001,203.36,203.35,227.18344853]
[1739210040956,0.0001,203.36,203.35,227.43442853]
[1739210041535,0.063,203.48,203.38,33.41184853]
[1739210041851,0.063,203.48,203.42,25.03167068]
[1739210042545,0.063,203.48,203.42,225.13167068]
[1739210043126,0.063,203.48,203.42,225.38265068]
[1739210043322,0.063,203.48,203.46,20.0]
[1739210043548,0.063,203.48,203.47,30.68328759]
[1739210043735,0.063,203.48,203.47,92.81982215]
[1739210044098,0.063,203.48,203.47,81.2]
[1739210044248,0.063,203.48,203.43,11.61982215]
[1739210044446,0.063,203.48,203.44,11.61982215]
[1739210044839,0.063,203.48,203.45,11.61982215]
[1739210046339,0.063,203.48,203.46,12.3569139]
[1739210046643,0.063,203.48,203.47,11.61982215]
[1739210047250,0.063,203.48,203.45,11.61982215]
[1739210047454,0.063,203.48,203.45,81.2]
[1739210049960,0.063,203.48,203.45,93.5569673]
[1739210050761,0.063,203.48,203.45,98.4721673]
[1739210050942,0.063,203.48,203.45,97.73502215]
[1739210051269,0.063,203.48,203.45,92.81982215]
[1739210052256,0.063,203.48,203.45,97.73492215]
[1739210052564,0.063,203.48,203.47,25.03167068]
[1739210052867,0.063,203.48,203.47,25.76860391]
[1739210053455,0.063,203.48,203.47,225.86860391]
[1739210053667,0.063,203.48,203.47,230.04637068]
[1739210054444,0.063,203.48,203.47,218.42654853]
[1739210055040,0.063,203.48,203.47,230.04637068]
[1739210055381,0.063,203.48,203.47,200.1]
[1739210056971,0.063,203.48,203.47,205.0147]
[1739210057161,0.063,203.48,203.47,200.1]
[1739210057542,0.063,203.48,203.47,205.0147]
[1739210058052,0.063,203.48,203.47,230.04637068]
[1739210058451,0.063,203.49,203.47,230.04637068]
[1739210058669,0.063,203.49,203.48,14.14867943]
[1739210059376,0.063,203.49,203.48,13.41184853]
[1739210059543,0.063,203.49,203.48,18.32624853]
[1739210059744,0.063,203.49,203.48,4.9144]
[1739210060473,0.063,203.49,203.47,216.63442215]
[1739210060775,0.063,203.49,203.47,200.1]
[1739210060942,0.063,203.49,203.47,205.0147]
[1739210061343,0.063,203.49,203.47,216.63452215]
[1739210062272,0.063,203.49,203.47,97.73452215]
[1739210062659,0.063,203.49,203.48,14.14883015]
[1739210063673,0.063,203.49,203.48,25.7686523]
[1739210063878,0.063,203.49,203.48,30.6830523]
[1739210064284,0.0001,203.49,203.48,30.6830523]
[1739210064454,0.0001,203.49,203.48,231.0340323]
[1739210064779,0.0001,203.49,203.48,230.29705068]
[1739210066583,0.0001,203.49,203.48,230.04607068]
[1739210070183,0.0001,203.49,203.48,232.29705068]
[1739210071769,0.0001,203.49,203.48,228.09873985]
[1739210076988,0.0001,203.49,203.48,228.34971985]
[1739210077171,1.5348,203.66,203.59,20.0]
[1739210077373,1.5348,203.66,203.62,7.42151132]
[1739210078168,1.5348,203.66,203.63,18.32264853]
[1739210078373,6.4881,203.68,203.63,18.32264853]
[1739210078694,0.03,203.69,203.65,13.41184853]
[1739210079505,0.03,203.69,203.66,7.42151132]
[1739210079807,0.03,203.69,203.67,11.57970351]
[1739210080182,0.03,203.69,203.68,11.57970351]
[1739210080398,0.03,203.69,203.68,16.48930351]
[1739210081202,0.03,203.69,203.68,29.90115204]
[1739210082782,0.03,203.69,203.68,148.80115204]
[1739210083205,0.03,203.7,203.68,230.50311204]
[1739210083499,11.57970351,203.83,203.72,20.0]
[1739210083692,0.12549,203.82,203.76,11.57970351]
[1739210084612,27.26571028,203.85,203.78,11.57970351]
[1739210084783,15.68600677,203.85,203.78,11.57970351]
[1739210085020,8.0229,203.85,203.78,11.57970351]
[1739210085704,8.0229,203.85,203.79,13.41184853]
[1739210086419,8.0229,203.85,203.79,19.05458241]
[1739210086998,8.0229,203.85,203.79,18.31874853]
[1739210087214,8.0229,203.85,203.8,11.57970351]
[1739210087616,11.57970351,203.89,203.82,11.57970351]
[1739210087909,8.0266,203.9,203.86,11.57970351]
[1739210088087,0.03,203.9,203.88,11.57970351]
[1739210088289,0.03,203.9,203.89,4.9046]
[1739210088812,0.03,203.9,203.89,18.31644853]
[1739210089321,0.03,203.9,203.88,16.48450351]
[1739210090018,0.03,203.9,203.89,13.41184853]
[1739210090206,0.03,203.9,203.88,17.21995398]
[1739210090419,0.03,203.9,203.88,11.57970351]
[1739210091081,0.03,203.9,203.89,14.14735046]
[1739210092112,0.03,203.9,203.89,13.41184853]
[1739210092415,0.03,203.9,203.89,18.31644853]
[1739210092792,0.03,203.9,203.88,11.57970351]
[1739210093105,0.03,203.9,203.84,11.57970351]
[1739210093311,0.15549,203.9,203.84,11.57970351]
[1739210093781,0.15549,203.9,203.83,118.9]
[1739210093987,0.15549,203.9,203.8,86.1065]
[1739210093988,11.57970351,203.87,203.8,130.47970351]
[1739210094405,16.48480351,203.87,203.8,130.47970351]
[1739210094688,16.48480351,203.87,203.8,118.9]
[1739210094689,0.12549,203.86,203.8,118.9]
[1739210095633,17.99140351,203.89,203.8,130.47970351]
[1739210095916,0.12549,203.88,203.8,130.47970351]
[1739210096218,0.12549,203.88,203.8,135.38640351]
[1739210096219,5.03029,203.88,203.8,135.38640351]
[1739210096513,0.12549,203.88,203.8,135.38640351]
[1739210096691,5.03029,203.88,203.8,135.38640351]
[1739210097805,5.03029,203.88,203.8,216.58640351]
[1739210098100,0.12549,203.88,203.8,216.58640351]
[1739210099112,13.08670351,203.89,203.81,0.7357548]
[1739210099419,0.12549,203.88,203.8,216.58640351]
[1739210099988,5.03029,203.88,203.8,216.58640351]
[1739210100909,0.12549,203.88,203.82,11.57970351]
[1739210101311,1.507,203.89,203.82,11.57970351]
[1739210101514,1.507,203.89,203.84,11.57970351]
[1739210101825,1.507,203.89,203.82,11.57970351]
[1739210101994,0.12549,203.88,203.82,11.57970351]
[1739210102497,0.12549,203.88,203.82,16.48580351]
[1739210102697,0.03,203.9,203.87,24.99155204]
[1739210103021,0.03,203.9,203.89,24.99155204]
[1739210104120,0.03,203.9,203.89,29.89615204]
[1739210106805,11.57970351,204.04,203.93,20.0]
[1739210107120,8.1983,204.05,203.98,11.57970351]
[1739210107492,8.1983,204.05,203.96,11.57970351]